[Event "*** Titled Tuesday Blitz"]
[Site "Chess.com"]
[Date "2020.04.07"]
[Round "9"]
[White "Shield12"]
[Black "Volodar_Murzin"]
[Result "1-0"]
[WhiteElo "2924"]
[BlackElo "2701"]
[TimeControl "180+1"]
[EndTime "14:47:27 PDT"]
[Termination "Shield12 won by resignation"]

1. e4 {[%clk 0:03:00.9]} 1... c6 {[%clk 0:02:59.8]} 2. d4 {[%clk 0:03:00.1]}
2... d5 {[%clk 0:03:00.7]} 3. Nc3 {[%clk 0:03:00.3]} 3... e6 {[%clk 0:02:52.8]}
4. a3 {[%clk 0:02:56.7]} 4... Nf6 {[%clk 0:02:49.1]} 5. e5 {[%clk 0:02:55.7]}
5... Nfd7 {[%clk 0:02:48.9]} 6. f4 {[%clk 0:02:53.7]} 6... g6 {[%clk 0:02:45.1]}
7. Nf3 {[%clk 0:02:54.6]} 7... h5 {[%clk 0:02:44.6]} 8. Be3 {[%clk 0:02:53.2]}
8... Be7 {[%clk 0:02:44.2]} 9. g3 {[%clk 0:02:51.2]} 9... c5 {[%clk 0:02:43.2]}
10. Qd2 {[%clk 0:02:49.5]} 10... Nc6 {[%clk 0:02:42.7]} 11. dxc5 {[%clk
0:02:46.5]} 11... Bxc5 {[%clk 0:02:39.6]} 12. Bxc5 {[%clk 0:02:44.6]} 12... Nxc5
{[%clk 0:02:40.5]} 13. O-O-O {[%clk 0:02:42.1]} 13... Qe7 {[%clk 0:02:37.8]} 14.
Nd4 {[%clk 0:02:37.5]} 14... a6 {[%clk 0:02:32.7]} 15. Bg2 {[%clk 0:02:34.4]}
15... Bd7 {[%clk 0:02:30.3]} 16. Bxd5 {[%clk 0:02:31.9]} 16... O-O {[%clk
0:02:11]} 17. Bxc6 {[%clk 0:02:26.8]} 17... bxc6 {[%clk 0:02:09.9]} 18. Nb3
{[%clk 0:02:19.5]} 18... Nxb3+ {[%clk 0:01:59.6]} 19. cxb3 {[%clk 0:02:20.4]}
19... Rfd8 {[%clk 0:01:58.3]} 20. Qd6 {[%clk 0:02:17.7]} 20... Kf8 {[%clk
0:01:50.1]} 21. Ne4 {[%clk 0:02:17.5]} 21... Be8 {[%clk 0:01:47.8]} 22. Qxe7+
{[%clk 0:02:14.2]} 22... Kxe7 {[%clk 0:01:48.7]} 23. Rxd8 {[%clk 0:02:08]} 23...
Rxd8 {[%clk 0:01:46.6]} 24. Rd1 {[%clk 0:02:08.9]} 24... Rb8 {[%clk 0:01:46.9]}
25. b4 {[%clk 0:02:05.8]} 25... Rb5 {[%clk 0:01:44.6]} 26. Kc2 {[%clk
0:02:00.7]} 26... g5 {[%clk 0:01:34.7]} 27. Nxg5 {[%clk 0:01:56.8]} 27... c5
{[%clk 0:01:34.7]} 28. Kc3 {[%clk 0:01:42.7]} 28... cxb4+ {[%clk 0:01:32.1]} 29.
axb4 {[%clk 0:01:43.6]} 29... a5 {[%clk 0:01:31.9]} 30. bxa5 {[%clk 0:01:43.4]}
30... Rc5+ {[%clk 0:01:31.4]} 31. Kd2 {[%clk 0:01:36.9]} 31... Rxa5 {[%clk
0:01:30.1]} 32. Rc1 {[%clk 0:01:35.9]} 32... Rb5 {[%clk 0:01:28.1]} 33. Rc7+
{[%clk 0:01:33.6]} 33... Kd8 {[%clk 0:01:25.9]} 34. Rc2 {[%clk 0:01:21.1]} 34...
Rb3 {[%clk 0:01:11]} 35. Kc1 {[%clk 0:01:18.5]} 35... Re3 {[%clk 0:01:09.9]} 36.
Rc3 {[%clk 0:01:07.9]} 36... Re2 {[%clk 0:01:06.7]} 37. h4 {[%clk 0:01:05.3]}
37... Rg2 {[%clk 0:00:58.9]} 38. Kb1 {[%clk 0:01:03.2]} 38... Ke7 {[%clk
0:00:52.5]} 39. Rc7+ {[%clk 0:01:01.7]} 39... Kd8 {[%clk 0:00:52.3]} 40. Rc3
{[%clk 0:01:01.8]} 40... Ke7 {[%clk 0:00:51.2]} 41. Ka2 {[%clk 0:01:01.2]} 41...
Kd8 {[%clk 0:00:18.6]} 42. Ka3 {[%clk 0:01:00.8]} 42... Rg1 {[%clk 0:00:18]} 43.
Ne4 {[%clk 0:00:56.9]} 43... Ra1+ {[%clk 0:00:17]} 44. Kb3 {[%clk 0:00:57.1]}
44... Ba4+ {[%clk 0:00:16.3]} 45. Kb4 {[%clk 0:00:57.1]} 45... Bd1 {[%clk
0:00:16.6]} 46. b3 {[%clk 0:00:55.1]} 46... Bg4 {[%clk 0:00:13.1]} 47. Nd6
{[%clk 0:00:51.9]} 47... Ra7 {[%clk 0:00:10.3]} 48. Rc8+ {[%clk 0:00:50.2]}
48... Ke7 {[%clk 0:00:09.9]} 49. Rb8 {[%clk 0:00:48.5]} 49... Bf3 {[%clk
0:00:08.2]} 50. Nc8+ {[%clk 0:00:48.6]} 1-0

[Event "*** Titled Tuesday Blitz"]
[Site "Chess.com"]
[Date "2020.04.07"]
[Round "9"]
[White "Olga_Girya"]
[Black "WPWPWP-2015"]
[Result "1-0"]
[WhiteElo "2552"]
[BlackElo "2394"]
[TimeControl "180+1"]
[EndTime "14:47:27 PDT"]
[Termination "Olga_Girya won by checkmate"]

1. d4 {[%clk 0:03:00.9]} 1... Nf6 {[%clk 0:02:56.9]} 2. c4 {[%clk 0:03:00.8]}
2... e6 {[%clk 0:02:56.6]} 3. Nf3 {[%clk 0:03:01.1]} 3... b6 {[%clk 0:02:55.6]}
4. g3 {[%clk 0:03:01.3]} 4... Ba6 {[%clk 0:02:54.9]} 5. b3 {[%clk 0:03:00.6]}
5... Bb4+ {[%clk 0:02:54.3]} 6. Bd2 {[%clk 0:03:00.7]} 6... Be7 {[%clk
0:02:49.3]} 7. Nc3 {[%clk 0:02:59.8]} 7... Bb7 {[%clk 0:02:46.1]} 8. Bg2 {[%clk
0:02:58.6]} 8... O-O {[%clk 0:02:45.4]} 9. O-O {[%clk 0:02:58.1]} 9... d5 {[%clk
0:02:45.1]} 10. cxd5 {[%clk 0:02:58.1]} 10... exd5 {[%clk 0:02:43.3]} 11. Bc1
{[%clk 0:02:57.5]} 11... Nbd7 {[%clk 0:02:38.1]} 12. Ne5 {[%clk 0:02:57.5]}
12... Rc8 {[%clk 0:02:35.1]} 13. Bb2 {[%clk 0:02:54.2]} 13... a6 {[%clk
0:02:32.1]} 14. Bh3 {[%clk 0:02:46.1]} 14... Re8 {[%clk 0:02:28.6]} 15. Rc1
{[%clk 0:02:32.4]} 15... Rb8 {[%clk 0:02:25.8]} 16. Qd3 {[%clk 0:02:21.1]} 16...
Nf8 {[%clk 0:02:14.9]} 17. Bg2 {[%clk 0:02:13.5]} 17... Ne6 {[%clk 0:02:03.9]}
18. e3 {[%clk 0:02:12.5]} 18... Bd6 {[%clk 0:01:56.2]} 19. f4 {[%clk 0:02:12]}
19... c5 {[%clk 0:01:45.1]} 20. a4 {[%clk 0:01:57.7]} 20... cxd4 {[%clk
0:01:41.8]} 21. exd4 {[%clk 0:01:57.9]} 21... Nxd4 {[%clk 0:01:40.9]} 22. Nxd5
{[%clk 0:01:44.2]} 22... Bxd5 {[%clk 0:01:03.4]} 23. Bxd5 {[%clk 0:01:11.4]}
23... Bxe5 {[%clk 0:00:48]} 24. fxe5 {[%clk 0:01:10.7]} 24... Nxd5 {[%clk
0:00:46.1]} 25. Qxd4 {[%clk 0:01:06.7]} 25... Ne7 {[%clk 0:00:35]} 26. Qf4
{[%clk 0:00:51.5]} 26... Qd5 {[%clk 0:00:33.5]} 27. e6 {[%clk 0:00:25.6]} 27...
f6 {[%clk 0:00:33]} 28. Bxf6 {[%clk 0:00:17.4]} 28... Qxe6 {[%clk 0:00:28.2]}
29. Bxe7 {[%clk 0:00:10.9]} 29... Qxe7 {[%clk 0:00:27.5]} 30. Rc7 {[%clk
0:00:09.8]} 30... Qe3+ {[%clk 0:00:23.3]} 31. Qxe3 {[%clk 0:00:09.8]} 31... Rxe3
{[%clk 0:00:23.1]} 32. Rff7 {[%clk 0:00:10.7]} 32... Rxb3 {[%clk 0:00:16.6]} 33.
Rxg7+ {[%clk 0:00:10.9]} 33... Kf8 {[%clk 0:00:16.4]} 34. Rxh7 {[%clk
0:00:10.3]} 34... Kg8 {[%clk 0:00:16.7]} 35. Rcg7+ {[%clk 0:00:10.2]} 35... Kf8
{[%clk 0:00:16.9]} 36. Ra7 {[%clk 0:00:10.3]} 36... Kg8 {[%clk 0:00:16.6]} 37.
Kg2 {[%clk 0:00:05.6]} 37... Rc8 {[%clk 0:00:15.2]} 38. Rhe7 {[%clk 0:00:04.4]}
38... Rc2+ {[%clk 0:00:14.1]} 39. Kh3 {[%clk 0:00:04.6]} 39... Rc8 {[%clk
0:00:13.9]} 40. Rxa6 {[%clk 0:00:04.1]} 40... Rb4 {[%clk 0:00:13.7]} 41. Rb7
{[%clk 0:00:03.5]} 41... Rc6 {[%clk 0:00:12.7]} 42. Ra8+ {[%clk 0:00:02.7]}
42... Rc8 {[%clk 0:00:13.5]} 43. Rxc8# {[%clk 0:00:02.7]} 1-0

[Event "*** Titled Tuesday Blitz"]
[Site "Chess.com"]
[Date "2020.04.07"]
[Round "9"]
[White "Mops_2004"]
[Black "rpragchess"]
[Result "1-0"]
[WhiteElo "2588"]
[BlackElo "2790"]
[TimeControl "180+1"]
[EndTime "14:47:28 PDT"]
[Termination "Mops_2004 won by resignation"]

1. Nf3 {[%clk 0:03:00.9]} 1... Nf6 {[%clk 0:02:57.4]} 2. g3 {[%clk 0:03:00.8]}
2... g6 {[%clk 0:02:54.7]} 3. Bg2 {[%clk 0:03:00.7]} 3... Bg7 {[%clk 0:02:55.4]}
4. c4 {[%clk 0:03:00.1]} 4... O-O {[%clk 0:02:56.3]} 5. O-O {[%clk 0:03:00.1]}
5... d6 {[%clk 0:02:56.5]} 6. d4 {[%clk 0:03:00.2]} 6... Nbd7 {[%clk 0:02:54.8]}
7. Nc3 {[%clk 0:03:00.2]} 7... e5 {[%clk 0:02:54.9]} 8. e4 {[%clk 0:03:00.3]}
8... c6 {[%clk 0:02:54.4]} 9. h3 {[%clk 0:03:00.2]} 9... exd4 {[%clk 0:02:51.9]}
10. Nxd4 {[%clk 0:02:59.5]} 10... Re8 {[%clk 0:02:52.6]} 11. Be3 {[%clk
0:02:59.3]} 11... Nc5 {[%clk 0:02:51.7]} 12. Qc2 {[%clk 0:02:58.8]} 12... Qe7
{[%clk 0:02:44.7]} 13. Rfe1 {[%clk 0:02:58]} 13... a5 {[%clk 0:02:44.1]} 14.
Rad1 {[%clk 0:02:57]} 14... Bd7 {[%clk 0:02:44.3]} 15. Nb3 {[%clk 0:02:27]}
15... Nxb3 {[%clk 0:01:59.5]} 16. axb3 {[%clk 0:02:27.9]} 16... Be6 {[%clk
0:01:58.5]} 17. Bf4 {[%clk 0:02:14]} 17... Red8 {[%clk 0:01:56.4]} 18. Qc1
{[%clk 0:01:58.3]} 18... Qf8 {[%clk 0:01:46.1]} 19. g4 {[%clk 0:01:43.4]} 19...
Rac8 {[%clk 0:01:32.7]} 20. Qe3 {[%clk 0:01:36.5]} 20... Rd7 {[%clk 0:01:02.5]}
21. Na4 {[%clk 0:01:27.9]} 21... Re8 {[%clk 0:00:55.7]} 22. Qg3 {[%clk
0:01:23.2]} 22... d5 {[%clk 0:00:27.4]} 23. cxd5 {[%clk 0:01:17.5]} 23... cxd5
{[%clk 0:00:27.4]} 24. Nb6 {[%clk 0:01:08.9]} 24... Rde7 {[%clk 0:00:18.6]} 25.
Bd6 {[%clk 0:01:00.6]} 25... Nxe4 {[%clk 0:00:17.6]} 26. Bxe4 {[%clk 0:01:00]}
26... dxe4 {[%clk 0:00:18.5]} 27. Bxe7 {[%clk 0:00:51.1]} 27... Qxe7 {[%clk
0:00:17.4]} 28. Rxe4 {[%clk 0:00:48.4]} 28... Rd8 {[%clk 0:00:15.3]} 29. Rde1
{[%clk 0:00:40.9]} 29... Qc5 {[%clk 0:00:14.3]} 30. Nc4 {[%clk 0:00:39.2]} 30...
b5 {[%clk 0:00:13.5]} 31. Ne5 {[%clk 0:00:35.8]} 31... Bd5 {[%clk 0:00:09.9]}
32. R4e3 {[%clk 0:00:33.9]} 32... Be6 {[%clk 0:00:09.2]} 33. Nd3 {[%clk
0:00:33]} 33... Qd4 {[%clk 0:00:08.7]} 34. Nf4 {[%clk 0:00:32.5]} 34... Bd7
{[%clk 0:00:03.3]} 35. Rd3 {[%clk 0:00:32.5]} 35... Qxb2 {[%clk 0:00:03.3]} 36.
Red1 {[%clk 0:00:32.2]} 36... Be5 {[%clk 0:00:03.5]} 37. Qe3 {[%clk 0:00:31.1]}
37... f6 {[%clk 0:00:01.6]} 38. Rxd7 {[%clk 0:00:28.9]} 38... Rxd7 {[%clk
0:00:01.5]} 39. Rxd7 {[%clk 0:00:29.8]} 39... a4 {[%clk 0:00:02.1]} 40. bxa4
{[%clk 0:00:29.4]} 40... bxa4 {[%clk 0:00:02.1]} 41. Rd8+ {[%clk 0:00:29.5]}
41... Kg7 {[%clk 0:00:01.9]} 42. Ne6+ {[%clk 0:00:29.4]} 42... Kf7 {[%clk
0:00:02.3]} 43. Qa7+ {[%clk 0:00:26.9]} 1-0

[Event "*** Titled Tuesday Blitz"]
[Site "Chess.com"]
[Date "2020.04.07"]
[Round "9"]
[White "WelshTiger"]
[Black "HrvojeZagreb"]
[Result "1-0"]
[WhiteElo "2412"]
[BlackElo "2135"]
[TimeControl "180+1"]
[EndTime "14:47:28 PDT"]
[Termination "WelshTiger won on time"]

1. e4 {[%clk 0:03:00.9]} 1... e6 {[%clk 0:02:59.8]} 2. d4 {[%clk 0:03:00.3]}
2... d5 {[%clk 0:02:59.9]} 3. Nd2 {[%clk 0:03:00.9]} 3... dxe4 {[%clk
0:03:00.1]} 4. Nxe4 {[%clk 0:03:00.8]} 4... Nd7 {[%clk 0:03:01]} 5. c3 {[%clk
0:02:56.3]} 5... Ngf6 {[%clk 0:03:01.4]} 6. Nxf6+ {[%clk 0:02:52.3]} 6... Nxf6
{[%clk 0:03:02.3]} 7. g3 {[%clk 0:02:47.2]} 7... Bd6 {[%clk 0:02:50.7]} 8. Bg2
{[%clk 0:02:46.5]} 8... O-O {[%clk 0:02:50.7]} 9. Nf3 {[%clk 0:02:46.2]} 9...
Rb8 {[%clk 0:02:49.4]} 10. O-O {[%clk 0:02:44.2]} 10... b6 {[%clk 0:02:49.1]}
11. Ne5 {[%clk 0:02:44.3]} 11... Bxe5 {[%clk 0:02:47.5]} 12. dxe5 {[%clk
0:02:43.9]} 12... Nd7 {[%clk 0:02:38.3]} 13. Qe2 {[%clk 0:02:32.6]} 13... Bb7
{[%clk 0:02:35.6]} 14. Bxb7 {[%clk 0:02:29.4]} 14... Rxb7 {[%clk 0:02:36.5]} 15.
Rd1 {[%clk 0:02:27]} 15... Qe7 {[%clk 0:02:33.9]} 16. c4 {[%clk 0:02:05.6]}
16... Rd8 {[%clk 0:02:29.2]} 17. b3 {[%clk 0:02:05.2]} 17... Nf8 {[%clk
0:02:15.8]} 18. Bb2 {[%clk 0:02:03.4]} 18... c5 {[%clk 0:02:11.9]} 19. h4 {[%clk
0:01:58.2]} 19... Rbd7 {[%clk 0:02:09.3]} 20. Kh2 {[%clk 0:01:50.8]} 20... Rxd1
{[%clk 0:02:05.2]} 21. Rxd1 {[%clk 0:01:49.7]} 21... Rxd1 {[%clk 0:02:06.1]} 22.
Qxd1 {[%clk 0:01:50]} 22... Qd7 {[%clk 0:02:07]} 23. Qe2 {[%clk 0:01:45.6]}
23... h6 {[%clk 0:01:54]} 24. Bc3 {[%clk 0:01:34.9]} 24... Qc6 {[%clk
0:01:48.5]} 25. Qd3 {[%clk 0:01:30.1]} 25... Nd7 {[%clk 0:01:43.4]} 26. Qe3
{[%clk 0:00:59.3]} 26... Nb8 {[%clk 0:01:35.5]} 27. Qd3 {[%clk 0:00:56.7]} 27...
Qd7 {[%clk 0:01:34.9]} 28. Qxd7 {[%clk 0:00:55.1]} 28... Nxd7 {[%clk 0:01:35.8]}
29. Kg2 {[%clk 0:00:56]} 29... h5 {[%clk 0:01:28.1]} 30. Kf3 {[%clk 0:00:56.3]}
30... Kh7 {[%clk 0:01:23.2]} 31. Ke4 {[%clk 0:00:56.7]} 31... Kg6 {[%clk
0:01:21.1]} 32. f3 {[%clk 0:00:57.4]} 32... Nb8 {[%clk 0:01:07.5]} 33. a3 {[%clk
0:00:50.9]} 33... a5 {[%clk 0:00:57.8]} 34. Bd2 {[%clk 0:00:45.5]} 34... Nc6
{[%clk 0:00:56.2]} 35. Be3 {[%clk 0:00:45.6]} 35... f5+ {[%clk 0:00:20.8]} 36.
exf6 {[%clk 0:00:44.8]} 36... gxf6 {[%clk 0:00:20.4]} 37. g4 {[%clk 0:00:42.6]}
37... a4 {[%clk 0:00:09.8]} 38. bxa4 {[%clk 0:00:39.5]} 38... Na5 {[%clk
0:00:03.1]} 39. Kd3 {[%clk 0:00:39.5]} 39... e5 {[%clk 0:00:01.8]} 40. Bd2
{[%clk 0:00:36.4]} 1-0

[Event "*** Titled Tuesday Blitz"]
[Site "Chess.com"]
[Date "2020.04.07"]
[Round "9"]
[White "Vojtastr"]
[Black "Cocaino74"]
[Result "1-0"]
[WhiteElo "2467"]
[BlackElo "2267"]
[TimeControl "180+1"]
[EndTime "14:47:29 PDT"]
[Termination "Vojtastr won on time"]

1. c4 {[%clk 0:03:00.9]} 1... e6 {[%clk 0:02:58.9]} 2. Nc3 {[%clk 0:03:00.4]}
2... d5 {[%clk 0:02:59.8]} 3. d4 {[%clk 0:03:00.2]} 3... Nf6 {[%clk 0:02:58.9]}
4. cxd5 {[%clk 0:03:00.1]} 4... exd5 {[%clk 0:02:59.8]} 5. Bg5 {[%clk
0:02:59.9]} 5... Be7 {[%clk 0:03:00.3]} 6. e3 {[%clk 0:03:00.1]} 6... O-O {[%clk
0:03:00.8]} 7. Qc2 {[%clk 0:02:57.6]} 7... h6 {[%clk 0:03:01.2]} 8. Bh4 {[%clk
0:02:57.1]} 8... b6 {[%clk 0:03:01.4]} 9. Nf3 {[%clk 0:02:50.9]} 9... Bb7 {[%clk
0:02:59.5]} 10. Be2 {[%clk 0:02:42.5]} 10... Nbd7 {[%clk 0:02:55.6]} 11. O-O
{[%clk 0:02:42.5]} 11... c6 {[%clk 0:02:53.2]} 12. Rfd1 {[%clk 0:02:42.9]} 12...
Re8 {[%clk 0:02:53]} 13. Rab1 {[%clk 0:02:29.5]} 13... Ne4 {[%clk 0:02:45.1]}
14. Bxe7 {[%clk 0:02:28.7]} 14... Qxe7 {[%clk 0:02:46]} 15. Nxe4 {[%clk
0:02:28.3]} 15... dxe4 {[%clk 0:02:43.7]} 16. Nd2 {[%clk 0:02:28.1]} 16... c5
{[%clk 0:02:43.1]} 17. Nb3 {[%clk 0:02:19.8]} 17... cxd4 {[%clk 0:02:31.6]} 18.
Rxd4 {[%clk 0:02:11]} 18... Rac8 {[%clk 0:02:29.9]} 19. Qd2 {[%clk 0:02:09.3]}
19... Nc5 {[%clk 0:02:26.6]} 20. Nxc5 {[%clk 0:02:06]} 20... Qxc5 {[%clk
0:02:27.3]} 21. Rd1 {[%clk 0:01:53.3]} 21... a5 {[%clk 0:02:16.7]} 22. a3 {[%clk
0:01:52.1]} 22... Qc2 {[%clk 0:02:10.9]} 23. h3 {[%clk 0:01:52.1]} 23... g6
{[%clk 0:02:09.1]} 24. Rd6 {[%clk 0:01:45.5]} 24... Qc5 {[%clk 0:01:15.5]} 25.
Qd4 {[%clk 0:01:43]} 25... Qxd4 {[%clk 0:01:15.6]} 26. R1xd4 {[%clk 0:01:39.1]}
26... Rc2 {[%clk 0:01:16]} 27. Rxb6 {[%clk 0:01:37.6]} 27... Re7 {[%clk
0:00:58.9]} 28. Bd1 {[%clk 0:01:30.6]} 28... Rc1 {[%clk 0:00:56.5]} 29. Kh2
{[%clk 0:01:30.9]} 29... Rec7 {[%clk 0:00:51.8]} 30. Kg3 {[%clk 0:01:24.9]}
30... Kg7 {[%clk 0:00:51.4]} 31. h4 {[%clk 0:01:24.4]} 31... R1c5 {[%clk
0:00:18.8]} 32. Rd2 {[%clk 0:01:11.1]} 32... Ba8 {[%clk 0:00:08.7]} 33. Rb8
{[%clk 0:01:09.9]} 33... Bb7 {[%clk 0:00:08.5]} 34. b4 {[%clk 0:01:05.5]} 34...
axb4 {[%clk 0:00:08]} 35. axb4 {[%clk 0:01:06.4]} 35... Rc4 {[%clk 0:00:05.6]}
36. b5 {[%clk 0:01:06.3]} 36... Re7 {[%clk 0:00:03.6]} 37. Be2 {[%clk
0:01:03.7]} 37... Rb4 {[%clk 0:00:03.6]} 38. Rbd8 {[%clk 0:01:02]} 38... Rc7
{[%clk 0:00:01.7]} 39. R8d7 {[%clk 0:01:01.6]} 39... Rxd7 {[%clk 0:00:01.9]} 40.
Rxd7 {[%clk 0:01:01.6]} 40... Bc8 {[%clk 0:00:02.8]} 41. Rd4 {[%clk 0:00:55.1]}
41... Rb2 {[%clk 0:00:02.2]} 42. Bc4 {[%clk 0:00:52]} 42... Bf5 {[%clk
0:00:02.4]} 43. Rd6 {[%clk 0:00:45.7]} 43... h5 {[%clk 0:00:02.5]} 44. b6 {[%clk
0:00:44.6]} 44... Rb4 {[%clk 0:00:02.3]} 45. Bd5 {[%clk 0:00:43.6]} 1-0

[Event "*** Titled Tuesday Blitz"]
[Site "Chess.com"]
[Date "2020.04.07"]
[Round "9"]
[White "TomPolgar"]
[Black "picturesquecheck"]
[Result "1-0"]
[WhiteElo "2313"]
[BlackElo "2149"]
[TimeControl "180+1"]
[EndTime "14:47:29 PDT"]
[Termination "TomPolgar won by resignation"]

1. e4 {[%clk 0:03:00.9]} 1... c5 {[%clk 0:03:00.1]} 2. Nf3 {[%clk 0:03:00.5]}
2... Nc6 {[%clk 0:02:59.5]} 3. Bb5 {[%clk 0:03:00.2]} 3... g6 {[%clk 0:02:58.7]}
4. O-O {[%clk 0:02:59.6]} 4... Bg7 {[%clk 0:02:58.6]} 5. Re1 {[%clk 0:02:59.3]}
5... e5 {[%clk 0:02:58.4]} 6. b4 {[%clk 0:02:58.7]} 6... cxb4 {[%clk 0:02:47.4]}
7. a3 {[%clk 0:02:58.1]} 7... Nge7 {[%clk 0:02:46.6]} 8. axb4 {[%clk 0:02:54.1]}
8... O-O {[%clk 0:02:46.1]} 9. Bxc6 {[%clk 0:02:47.9]} 9... Nxc6 {[%clk
0:02:44.1]} 10. b5 {[%clk 0:02:39.2]} 10... Nd4 {[%clk 0:02:41.3]} 11. Nxd4
{[%clk 0:02:36.2]} 11... exd4 {[%clk 0:02:41.6]} 12. d3 {[%clk 0:02:28]} 12...
d5 {[%clk 0:02:38.8]} 13. e5 {[%clk 0:02:26]} 13... Bd7 {[%clk 0:02:29.6]} 14.
Na3 {[%clk 0:02:18.5]} 14... Qc7 {[%clk 0:02:20.6]} 15. Bf4 {[%clk 0:02:15.3]}
15... Be6 {[%clk 0:02:04]} 16. Qd2 {[%clk 0:02:03.8]} 16... Rac8 {[%clk
0:02:01.5]} 17. h4 {[%clk 0:01:49.1]} 17... Rfe8 {[%clk 0:01:54.2]} 18. h5
{[%clk 0:01:48.2]} 18... Bf8 {[%clk 0:01:54.4]} 19. Bh6 {[%clk 0:01:30.7]} 19...
Be7 {[%clk 0:01:31.2]} 20. Ra2 {[%clk 0:00:52.3]} 20... a5 {[%clk 0:01:26.9]}
21. bxa6 {[%clk 0:00:46.2]} 21... bxa6 {[%clk 0:01:21]} 22. Nb1 {[%clk
0:00:43.1]} 22... a5 {[%clk 0:01:18.4]} 23. Qf4 {[%clk 0:00:37.3]} 23... Bf5
{[%clk 0:01:04.6]} 24. g4 {[%clk 0:00:31.7]} 24... Be6 {[%clk 0:01:03.4]} 25.
Qxd4 {[%clk 0:00:27.9]} 25... Bb4 {[%clk 0:01:02.9]} 26. Rf1 {[%clk 0:00:24.3]}
26... Bc5 {[%clk 0:01:01.1]} 27. Qf4 {[%clk 0:00:22.5]} 27... d4 {[%clk
0:01:01]} 28. Ra1 {[%clk 0:00:21.5]} 28... Bd5 {[%clk 0:00:52.7]} 29. Re1 {[%clk
0:00:17.6]} 29... Be7 {[%clk 0:00:50.1]} 30. Nd2 {[%clk 0:00:16.6]} 30... Qxc2
{[%clk 0:00:46.1]} 31. Rxa5 {[%clk 0:00:15.7]} 31... Be6 {[%clk 0:00:44.9]} 32.
Ne4 {[%clk 0:00:11.7]} 32... Qxd3 {[%clk 0:00:38.4]} 33. Nf6+ {[%clk 0:00:11.6]}
33... Kh8 {[%clk 0:00:38.6]} 34. Bg5 {[%clk 0:00:06.1]} 34... Qc3 {[%clk
0:00:35]} 35. Raa1 {[%clk 0:00:05.2]} 35... d3 {[%clk 0:00:32.4]} 36. Nxe8
{[%clk 0:00:05]} 36... Rxe8 {[%clk 0:00:28.8]} 37. Bxe7 {[%clk 0:00:04.7]} 37...
d2 {[%clk 0:00:26.7]} 38. Qf6+ {[%clk 0:00:05.2]} 38... Kg8 {[%clk 0:00:26.2]}
39. Red1 {[%clk 0:00:04.3]} 39... Bxg4 {[%clk 0:00:23.3]} 40. h6 {[%clk
0:00:04.3]} 1-0

[Event "*** Titled Tuesday Blitz"]
[Site "Chess.com"]
[Date "2020.04.07"]
[Round "9"]
[White "jonaszmb"]
[Black "Fy_Rakotomaharo"]
[Result "1-0"]
[WhiteElo "2423"]
[BlackElo "2570"]
[TimeControl "180+1"]
[EndTime "14:47:30 PDT"]
[Termination "jonaszmb won by checkmate"]

1. d4 {[%clk 0:03:00.9]} 1... Nf6 {[%clk 0:02:59.6]} 2. c4 {[%clk 0:03:01]} 2...
g6 {[%clk 0:02:59.1]} 3. Nf3 {[%clk 0:03:00.7]} 3... Bg7 {[%clk 0:02:58.7]} 4.
g3 {[%clk 0:03:01.3]} 4... c6 {[%clk 0:02:57.8]} 5. Bg2 {[%clk 0:03:01]} 5... d5
{[%clk 0:02:58.4]} 6. O-O {[%clk 0:03:00.3]} 6... O-O {[%clk 0:02:58.1]} 7. Qb3
{[%clk 0:03:00.4]} 7... Qb6 {[%clk 0:02:54.7]} 8. Nc3 {[%clk 0:02:59.4]} 8...
Rd8 {[%clk 0:02:54.9]} 9. Na4 {[%clk 0:02:59]} 9... Qxb3 {[%clk 0:02:48.3]} 10.
axb3 {[%clk 0:02:59.9]} 10... Na6 {[%clk 0:02:48.2]} 11. Bf4 {[%clk 0:02:57.9]}
11... Bf5 {[%clk 0:02:38.9]} 12. Ne5 {[%clk 0:02:33.5]} 12... Nd7 {[%clk
0:02:16.6]} 13. Nxd7 {[%clk 0:02:30]} 13... Rxd7 {[%clk 0:02:14.7]} 14. cxd5
{[%clk 0:02:14.4]} 14... cxd5 {[%clk 0:02:13.2]} 15. e3 {[%clk 0:02:03.1]} 15...
f6 {[%clk 0:01:50.5]} 16. h4 {[%clk 0:02:02.6]} 16... e5 {[%clk 0:01:47.4]} 17.
dxe5 {[%clk 0:01:48.5]} 17... fxe5 {[%clk 0:01:48.3]} 18. Bg5 {[%clk 0:01:25.9]}
18... h6 {[%clk 0:01:46.9]} 19. e4 {[%clk 0:01:23.3]} 19... hxg5 {[%clk
0:01:32.9]} 20. exf5 {[%clk 0:01:23]} 20... gxf5 {[%clk 0:01:33.6]} 21. hxg5
{[%clk 0:01:22.8]} 21... e4 {[%clk 0:01:33.5]} 22. Rfd1 {[%clk 0:01:17]} 22...
Rc8 {[%clk 0:01:27.7]} 23. g4 {[%clk 0:01:13.9]} 23... fxg4 {[%clk 0:01:04.5]}
24. Bxe4 {[%clk 0:01:13.5]} 24... Rcd8 {[%clk 0:01:04.7]} 25. Bf5 {[%clk
0:01:12.9]} 25... Re7 {[%clk 0:01:05.1]} 26. Bxg4 {[%clk 0:01:09.8]} 26... Re4
{[%clk 0:01:04.2]} 27. f3 {[%clk 0:01:02.2]} 27... Re2 {[%clk 0:00:58.4]} 28.
Nc3 {[%clk 0:00:54.9]} 28... Rxb2 {[%clk 0:00:55.7]} 29. Nxd5 {[%clk 0:00:53.7]}
29... Kf8 {[%clk 0:00:56.1]} 30. Nf4 {[%clk 0:00:41.3]} 30... Rxd1+ {[%clk
0:00:44.9]} 31. Rxd1 {[%clk 0:00:42.2]} 31... Nc5 {[%clk 0:00:45]} 32. Ne6+
{[%clk 0:00:37.2]} 32... Nxe6 {[%clk 0:00:43.4]} 33. Bxe6 {[%clk 0:00:38.1]}
33... Be5 {[%clk 0:00:42]} 34. f4 {[%clk 0:00:36.8]} 34... Bc7 {[%clk
0:00:35.5]} 35. f5 {[%clk 0:00:36.6]} 35... Bb6+ {[%clk 0:00:31.7]} 36. Kh1
{[%clk 0:00:35.5]} 36... Re2 {[%clk 0:00:27.4]} 37. Rd7 {[%clk 0:00:32.3]} 37...
Re4 {[%clk 0:00:26.4]} 38. g6 {[%clk 0:00:28.4]} 38... Bd4 {[%clk 0:00:22.5]}
39. Rxb7 {[%clk 0:00:26.6]} 39... a5 {[%clk 0:00:19.3]} 40. Kg2 {[%clk
0:00:26.5]} 40... Be5 {[%clk 0:00:18.6]} 41. Kf3 {[%clk 0:00:26.3]} 41... Rf4+
{[%clk 0:00:18.9]} 42. Ke3 {[%clk 0:00:26.9]} 42... Rb4 {[%clk 0:00:17.7]} 43.
Rf7+ {[%clk 0:00:26.7]} 43... Ke8 {[%clk 0:00:17.6]} 44. g7 {[%clk 0:00:26.6]}
44... Bxg7 {[%clk 0:00:16.4]} 45. Rxg7 {[%clk 0:00:27.5]} 45... a4 {[%clk
0:00:16.8]} 46. f6 {[%clk 0:00:27.1]} 46... Kd8 {[%clk 0:00:14.2]} 47. Rg8+
{[%clk 0:00:27]} 47... Kc7 {[%clk 0:00:15.1]} 48. f7 {[%clk 0:00:27.3]} 48...
Kd6 {[%clk 0:00:16]} 49. f8=Q+ {[%clk 0:00:27.2]} 49... Ke5 {[%clk 0:00:16.1]}
50. Qxb4 {[%clk 0:00:28.1]} 50... Kf6 {[%clk 0:00:15.2]} 51. Qxa4 {[%clk
0:00:27.5]} 51... Ke7 {[%clk 0:00:16.1]} 52. Re8+ {[%clk 0:00:27.2]} 52... Kf6
{[%clk 0:00:17]} 53. Qf4+ {[%clk 0:00:26.2]} 53... Kg7 {[%clk 0:00:16.6]} 54.
Rg8+ {[%clk 0:00:26.4]} 54... Kh7 {[%clk 0:00:16.4]} 55. Qh2# {[%clk 0:00:27.3]}
1-0